Cogmind - Beta 16.1 @@@ ROGUE MODE // 2026.01.08 @ 18:33:39 Player: f3-rnm Result: Destroyed by P-70 Sage with Tesla Rifle Performance ------------- Evolutions (6) 3000 Regions Visited (9) 1800 Robots Destroyed (40) 200 Value Destroyed (2085) 2085 Prototype IDs (25) 500 Alien Tech Used (2) 400 Bonus (2495) 2495 TOTAL SCORE: 10480 Bonus ------- High Alert Combat Kills 85 Follower Combat Kills 1310 Registered with UFD 300 Met Optimus in HQ 500 Met Zhirov 300 Cogmind --------- Core Integrity 0/1150 Matter 198/300 Energy 98/100 System Corruption 11% Temperature Cool (0) Movement Core (50) Location -4/Factory Parts ------- > --- POWER (2) -------- (None) > --- PROPULSION (6) --- (None) > --- UTILITY (9) ------ (None) > --- WEAPON (2) ------- (None) > --- INVENTORY (5) ---- Fission Core Antigrav System Companion Sword Large Botcube Peak State ------------ > --- POWER ------------ Enhanced Fission Core Fusion Reactor > --- PROPULSION ------- Medium Treads Heavy Treads Heavy Treads > --- UTILITY ---------- Large Storage Unit Advanced Energy Well Advanced Sensor Array Improved Signal Interpreter Improved Medium Armor Plating Focal Shield Improved Thermal Defense Suite Force Field > --- WEAPON ----------- Companion Sword > --- INVENTORY -------- Fission Core Neutrino Core Carbon-fiber Leg Carbon-fiber Leg Carbon-fiber Leg Flexi-carbon Leg Gyrokinetic Inverter Advanced Weight Redist. System Surveybot 17 Chip Enhanced Gauss Cannon Missile Launcher Advanced Remote Datajack Improved Plasma Cutter CPS Tube Vortex Trap [Rating: 92] Favorites ----------- Power Improved Ion Engine Engine Improved Ion Engine Power Core Enhanced Fission Core Reactor Fusion Reactor Propulsion Wheel Treads Heavy Treads Leg Carbon-fiber Leg Wheel Wheel Hover Unit Cooled Gravmag System Utility Focal Shield Device Focal Shield Storage Large Storage Unit Processor Improved Signal Interpreter Protection Improved Medium Armor Plating Weapon Companion Sword Ballistic Gun Light Assault Rifle Ballistic Cannon Gauss Cannon Launcher Missile Launcher Special Weapon Flamer Slashing Weapon Companion Sword Special Melee Weapon Improved Datajack Build | -11 -10 -10 -7 -5 -5 -5 -5 -4 -4 ------- Run | Yrd Mat Sub Scr Fac Upp Upp Zhi Pro Fac Slots Evolved 12 | . . . . 10 . . . . 2 Power 1 | . . . . 1 . . . . . Propulsion 4 | . . . . 3 . . . . 1 Utility 7 | . . . . 6 . . . . 1 Weapon . | . . . . . . . . . . Parts Attached 62 | 6 . 4 13 20 2 1 4 4 8 Power 10 | 1 . 1 2 5 . . 1 . . Engine 6 | 1 . 1 2 2 . . . . . Core 2 | . . . . 2 . . . . . Reactor 2 | . . . . 1 . . 1 . . Propulsion 17 | 2 . 2 2 6 . . 1 3 1 Treads 7 | 2 . . 2 3 . . . . . Leg 7 | . . . . 3 . . . 3 1 Wheel 2 | . . 2 . . . . . . . Hover 1 | . . . . . . . 1 . . Flight . | . . . . . . . . . . Utility 23 | 1 . . 5 7 2 1 2 . 5 Device 11 | . . . 4 3 . 1 . . 3 Storage 3 | 1 . . 1 . . . 1 . . Processor 3 | . . . . . 1 . . . 2 Hackware . | . . . . . . . . . . Protection 6 | . . . . 4 1 . 1 . . Artifact . | . . . . . . . . . . Weapon 12 | 2 . 1 4 2 . . . 1 2 Energy Gun . | . . . . . . . . . . Energy Cannon . | . . . . . . . . . . Ballistic Gun 2 | 2 . . . . . . . . . Ballistic Cannon 1 | . . . 1 . . . . . . Launcher 2 | . . . . . . . . 1 1 Special Weapon 5 | . . 1 2 1 . . . . 1 Impact Weapon . | . . . . . . . . . . Slashing Weapon 1 | . . . 1 . . . . . . Piercing Weapon . | . . . . . . . . . . Special Melee Weapon 1 | . . . . 1 . . . . . Unidentified Prototypes 10 | . . . 1 2 . . 5 . 2 Corrupted Parts 1 | . . . . . . . . . 1 System Corruption 4 | . . . . . . . . . 4 Parts Lost 23 | . . 4 . 6 . 1 . 3 9 Power 4 | . . 1 . 1 . . . . 2 Propulsion 10 | . . 1 . 2 . . . 2 5 Utility 7 | . . . . 3 . 1 . 1 2 Weapon 2 | . . 2 . . . . . . . Highest Loss Streak 9 | . . 2 . 2 . 1 . 2 9 To Critical Strikes 1 | . . . . . . . . 1 . Average Backups 7 | . 3 4 4 12 12 13 14 12 10 Power . | . . . . . 1 1 2 2 1 Propulsion 1 | . 2 1 . 2 4 4 4 1 . Utility 2 | . . 1 1 3 2 2 2 3 2 Weapon 1 | . . 1 1 3 2 2 2 2 2 Tool/Special . | . . . . . . . . . . Unused Backups 51 | . . . 27 5 . . 2 2 15 Power 6 | . . . 3 . . . . . 3 Propulsion 9 | . . . 4 1 . . 2 . 2 Utility 24 | . . . 15 2 . . . 2 5 Weapon 10 | . . . 5 2 . . . . 3 Tool/Special 2 | . . . . . . . . . 2 Average Slot Usage (%) 55 | . 85 78 44 60 74 76 76 74 58 Engine 7 | . 14 13 9 6 5 5 1 . . Core 1 | . . . . 1 5 5 5 5 3 Treads 7 | . 28 16 2 13 17 17 17 11 2 Leg 1 | . . . . 2 . . . 7 10 Wheel 7 | . . 11 11 1 . . . . . Device 15 | . . . 15 10 16 21 23 23 19 Storage 4 | . 14 14 3 5 5 5 5 5 3 Processor 1 | . . . . . 4 5 5 5 8 Protection 2 | . . . . 10 11 7 5 1 . Slashing Weapon 2 | . . . 1 5 5 5 5 5 4 Peak Build Rating 92 | 7 7 8 27 91 87 87 92 86 81 Average Rating 33 | 5 7 7 10 66 85 83 84 77 60 On Entrance 43 | . 7 7 8 15 80 86 82 86 68 Avg Prop Armor Cover (%) 29 | . . . 34 8 . . . 8 8 Naked Turns 140 | . . . . . . . . . 140 Heaviest Build 85 | 13 13 13 32 85 77 76 71 71 66 Greatest Support 168 | 40 40 40 58 168 168 168 168 168 50 Greatest Overweight (x) 4 | . . . 4 . . . . 2 3 Average Overweight (x) . | . . . 1 . . . . . . Largest Inventory Capacity 15 | 8 8 8 15 15 15 15 15 15 15 Average Capacity 9 | 7 8 8 6 15 15 15 15 15 12 Most Carried 15 | 3 5 8 13 15 15 15 15 15 15 Average Carried 8 | 1 4 5 4 14 13 14 14 13 11 Final Capacity 15 | 8 8 8 15 15 15 15 15 15 5 Final Carried 15 | 3 5 8 13 15 13 15 15 12 5 Class Distribution -------------------- 87% | Mutant 12% | Scavenger-Mutant Dominant Class ---------------- Mutant | -10/Materials Mutant | -10/Subcaves Mutant | -7/Scraptown Mutant | -5/Factory Mutant | -5/Upper Caves Mutant | -5/Upper Caves Mutant | -5/Zhirov Mutant | -4/Proximity Caves Scavenger-Mutant | -4/Factory Resources | -11 -10 -10 -7 -5 -5 -5 -5 -4 -4 ----------- Run | Yrd Mat Sub Scr Fac Upp Upp Zhi Pro Fac Matter Collected 1173 | 254 . 104 115 308 106 24 63 79 120 Remotely . | . . . . . . . . . . Salvage Created 2244 | . . 114 . 893 82 169 166 379 441 Parts 85 | . . 6 . 28 5 11 4 8 23 Haulers Intercepted 1 | . . . . 1 . . . . . Recyclers Shooed . | . . . . . . . . . . Parts Field Recycled . | . . . . . . . . . . Retrieved Matter . | . . . . . . . . . . Parts Self-Destructed 50 | . . 12 . . 10 14 3 11 . Prevented 1 | . . . . . 1 . . . . Parts Restored . | . . . . . . . . . . Kills | -11 -10 -10 -7 -5 -5 -5 -5 -4 -4 ------- Run | Yrd Mat Sub Scr Fac Upp Upp Zhi Pro Fac Combat Hostiles Destroyed 34 | . . 1 . 12 2 3 . 7 9 Melee 25 | . . . . 12 2 3 . 4 4 Cannons 1 | . . 1 . . . . . . . AOE 8 | . . . . . . . . 3 5 Classes Destroyed 13 | . . 3 . 8 . . . . 2 Builder 1 | . . . . . . . . . 1 Hauler 1 | . . . . 1 . . . . . Recycler 1 | . . . . 1 . . . . . Turret 2 | . . 2 . . . . . . . Watcher 1 | . . . . . . . . . 1 Swarmer 9 | . . . . 3 1 . . . 5 Grunt 13 | . . . . 4 1 3 . 3 2 Brawler 1 | . . . . 1 . . . . . Sentry 3 | . . . . 2 . . . . 1 Hunter 5 | . . . . 1 . . . 4 . Programmer 2 | . . . . 1 . . . . 1 Artisan 1 | . . 1 . . . . . . . Subdweller 1 | . . 1 . . . . . . . Best Kill Streak 4 | . . 2 . 3 1 3 . 3 4 Combat Bots Only 3 | . . 1 . 3 1 3 . 3 3 Max Kills in Single Turn 3 | . . 2 . 1 1 1 . 3 3 Gunslinging . | . . . . . . . . . . Exploded 3 | . . . . . . . . 3 3 Melee 1 | . . . . 1 1 1 . 1 1 Uniques/NPCs Destroyed . | . . . . . . . . . . Combat | -11 -10 -10 -7 -5 -5 -5 -5 -4 -4 -------- Run | Yrd Mat Sub Scr Fac Upp Upp Zhi Pro Fac Hostile Shots Fired 570 | . . 37 . 155 38 53 . 135 152 Missed 155 | . . 7 . 32 10 10 . 49 47 Hits 415 | . . 30 . 123 28 43 . 86 105 Projectile 415 | . . 30 . 123 28 43 . 86 105 AOE 3 | . . . . 3 . . . . . Critical Strikes 17 | . . . . 4 1 1 . 6 5 Damage Taken 6365 | . . 572 . 2055 352 438 . 861 2087 Core 1522 | . . 50 . 193 51 28 . 114 1086 Absorbed by Shields 1571 | . . . . 620 68 172 . 552 159 Ignored by Resistances 1106 | . . . . 141 135 219 . 438 173 Regen/Repaired (Parts) 370 | . . . 319 51 . . . . . Core Remaining (%) 80 | 100 . . 80 . . . . 61 . Volleys Fired 33 | 1 . 20 3 2 . . . 3 4 Largest 2 | 2 . 2 1 1 . . . 1 1 Hottest 120 | 40 . 120 . 7 . . . 36 49 Shots Fired 53 | 2 . 39 3 2 . . . 3 4 Gun 36 | 2 . 34 . . . . . . . Cannon . | . . . . . . . . . . Launcher 5 | . . . . . . . . 3 2 Special 12 | . . 5 3 2 . . . . 2 Kinetic 36 | 2 . 34 . . . . . . . Thermal 5 | . . 5 . . . . . . . Explosive 3 | . . . . . . . . 3 . Electromagnetic 2 | . . . . . . . . . 2 Robot Hit Streak 25 | . . 24 25 3 . . . 2 2 Robot Miss Streak 4 | . . 4 1 . . . . 1 1 Penetration Max . | . . . . . . . . . . Secondary Targets 1 | . . 1 . . . . . . . Max Gunslinging Chain 1 | . . 1 . . . . . . . Shots Hit Robots 132 | . . 29 2 41 11 11 4 17 17 Core Hits 69 | . . 8 . 20 3 4 2 21 11 Critical Kills . | . . . . . . . . . . Critical Parts Destroyed . | . . . . . . . . . . Critical Strikes 6 | . . . . 6 . . . . . Melee Attacks 125 | . . . . 53 11 16 4 18 23 Impact . | . . . . . . . . . . Slashing 124 | . . . . 52 11 16 4 18 23 Piercing . | . . . . . . . . . . Sneak Attacks 3 | . . . . 3 . . . . . Combat Hostiles . | . . . . . . . . . . Follow-up Attacks 3 | . . . . . . 2 . . 1 Damage Inflicted 5508 | . . 245 . 1604 477 442 388 1037 1315 Guns 212 | . . 212 . . . . . . . Cannons . | . . . . . . . . . . Explosions 1130 | . . . . . . . . 434 696 Melee 4133 | . . . . 1604 477 442 388 603 619 Ramming . | . . . . . . . . . . Kinetic 212 | . . 212 . . . . . . . Thermal 279 | . . 33 . . . . . . 246 Explosive 434 | . . . . . . . . 434 . Electromagnetic 450 | . . . . . . . . . 450 Impact . | . . . . . . . . . . Slashing 4133 | . . . . 1604 477 442 388 603 619 Piercing . | . . . . . . . . . . Highest Corruption 11 | . . . . 7 7 7 7 7 11 Average Corruption 6 | . . . . 5 7 7 7 7 3 Corruption Purged . | . . . . . . . . . . Corruption Blocked . | . . . . . . . . . . Effects 76 | . . . . 19 12 9 9 18 9 Message Errors 17 | . . . . 7 2 1 2 5 . Matter Fused 22 | . . . . 5 3 3 2 4 5 Heat Flow Errors 8 | . . . . 1 2 2 1 2 . Energy Discharges 11 | . . . . 1 1 1 2 4 2 Parts Rejected 1 | . . . . . . . . 1 . Parts Fused 2 | . . . . . . . . 2 . Data Loss (minor) 12 | . . . . 3 3 2 2 . 2 Data Loss (major) 3 | . . . . 2 1 . . . . Overload Shots . | . . . . . . . . . . Overflow Damage 359 | . . . . 2 29 . 157 4 167 Projectiles . | . . . . . . . . . . Explosions 157 | . . . . . . . . . 157 Melee 202 | . . . . 2 29 . 157 4 10 Knockbacks . | . . . . . . . . . . Impact . | . . . . . . . . . . Kinetic . | . . . . . . . . . . Secondary . | . . . . . . . . . . Self-Inflicted Damage 219 | . . . . . . . . . 219 Shots 4 | . . . . . . . . . 4 Rammed . | . . . . . . . . . . Targets Rammed . | . . . . . . . . . . Kicked . | . . . . . . . . . . Crushed . | . . . . . . . . . . Highest Temperature 269 | . . . . 194 217 269 155 195 . Average Temperature 102 | . . . . 80 114 117 78 97 . Received Heat Transfer 1171 | . . 87 . 329 89 267 . 140 259 Siege Activations . | . . . . . . . . . . Martial Activations . | . . . . . . . . . . Shielding Activations . | . . . . . . . . . . Robots Disrupted 1 | . . . . . . . . 1 . Combat Hostiles 1 | . . . . . . . . 1 . Robots Corrupted . | . . . . . . . . . . Combat Hostiles . | . . . . . . . . . . Parts Fried 4 | . . . . . . . . . 4 Impact Corruptions . | . . . . . . . . . . Robots Melted . | . . . . . . . . . . Combat Hostiles . | . . . . . . . . . . Parts Melted 4 | . . . . 2 . . . 2 . Heat Transferred 440 | . . 240 . . . . . . 200 Parts Sabotaged . | . . . . . . . . . . Parts Stolen . | . . . . . . . . . . Parts Stripped . | . . . . . . . . . . Power Chain Reactions 1 | . . . . . . . . . 1 Alert | -11 -10 -10 -7 -5 -5 -5 -5 -4 -4 ------- Run | Yrd Mat Sub Scr Fac Upp Upp Zhi Pro Fac Maximum Alert Level 3 | . . . . 2 . . . . 3 Low Security (%) 61 | 100 100 . . 51 . . . . 69 Level 1 23 | . . . . 38 . . . . 3 Level 2 14 | . . . . 10 . . . . 25 Level 3 . | . . . . . . . . . 1 Level 4 . | . . . . . . . . . . Level 5 . | . . . . . . . . . . High Security . | . . . . . . . . . . Max Security . | . . . . . . . . . . Peak Influence 736 | . . . . 435 . . . . 736 Initial 17 | . . . . . . . . . 17 Average 182 | . . . . 214 . . . . 169 Influence Increases 2755 | . . 40 . 904 199 137 10 319 1146 Destroy 0b10 Robot/C 1440 | . . 40 . 560 140 100 . 220 380 Destroy 0b10 Robot/NC 45 | . . . . 25 . . 10 . 10 Destroy Leader 246 | . . . . 104 20 10 . 30 82 Allied During Kill 374 | . . . . 156 39 27 . 69 83 Disable Machine 75 | . . . . 30 . . . . 45 Anti-Garrison Action 150 | . . . . . . . . . 150 Destroy Structure 80 | . . . . 14 . . . . 66 Lose Combat Pursuer 345 | . . . . 15 . . . . 330 Influence Decreases 2019 | . . 40 . 530 394 215 111 291 438 Entered New Map 287 | . . . . . 140 35 101 . 11 Time Decay 1392 | . . 40 . 460 254 170 10 241 217 Lost Part 180 | . . . . 50 . 10 . 30 90 Lost Ally 160 | . . . . 20 . . . 20 120 Squads Dispatched 15 | . . . . 5 . . . . 10 Investigation 3 | . . . . 1 . . . . 2 Extermination 4 | . . . . 2 . . . . 2 Reinforcement 3 | . . . . 1 . . . . 2 Assault 2 | . . . . . . . . . 2 Garrison 3 | . . . . 1 . . . . 2 Intercept . | . . . . . . . . . . Searches Triggered . | . . . . . . . . . . Construction Impeded . | . . . . . . . . . . Haulers Reinforced 1 | . . . . 1 . . . . . Active Scanning Responses . | . . . . . . . . . . Cargo Convoy Interrupts . | . . . . . . . . . . Stealth | -11 -10 -10 -7 -5 -5 -5 -5 -4 -4 --------- Run | Yrd Mat Sub Scr Fac Upp Upp Zhi Pro Fac Distress Signals 4 | . . . . . . . . . 4 Communications Jammed . | . . . . . . . . . . Distress Signals . | . . . . . . . . . . Times Spotted 115 | . . 12 . 29 7 5 . 12 50 Peak Tracking Total 13 | . . 6 . 5 4 5 . 5 13 Tactical Retreats 11 | . . 1 . 1 . . . . 9 Traps | -11 -10 -10 -7 -5 -5 -5 -5 -4 -4 ------- Run | Yrd Mat Sub Scr Fac Upp Upp Zhi Pro Fac Traps Triggered 4 | . . . . 4 . . . . . Indirectly . | . . . . . . . . . . Trap Hack Attempts . | . . . . . . . . . . Triggered . | . . . . . . . . . . Disarmed . | . . . . . . . . . . Reprogrammed . | . . . . . . . . . . Reused . | . . . . . . . . . . Traps Extracted . | . . . . . . . . . . Installed . | . . . . . . . . . . Triggered . | . . . . . . . . . . Most Traps Carried 1 | . . . 1 1 1 1 1 1 1 Machines | -11 -10 -10 -7 -5 -5 -5 -5 -4 -4 ---------- Run | Yrd Mat Sub Scr Fac Upp Upp Zhi Pro Fac Machines Disabled 7 | . . 1 . 2 . . . . 4 Max in Single Turn 2 | . . 1 . 1 . . . . 2 Garrison Access 2 | . . . . 1 . . . . 1 Machines Repaired . | . . . . . . . . . . Machines Dismantled . | . . . . . . . . . . Machines Sabotaged . | . . . . . . . . . . Overloaded Fab Kills . | . . . . . . . . . . Hacking | -11 -10 -10 -7 -5 -5 -5 -5 -4 -4 --------- Run | Yrd Mat Sub Scr Fac Upp Upp Zhi Pro Fac Machines Accessed 16 | . . . 5 5 . . 4 . 2 Terminals 2 | . . . . 1 . . . . 1 Fabricators . | . . . . . . . . . . Repair Stations . | . . . . . . . . . . Recycling Units 3 | . . . . 2 . . . . 1 Scanalyzers 1 | . . . . 1 . . . . . Garrison Access 1 | . . . . 1 . . . . . Total Hacks 66 | . . . 35 8 . . 17 . 6 Successful 56 | . . . 35 2 . . 17 . 2 Failed 10 | . . . . 6 . . . . 4 Catastrophic 1 | . . . . 1 . . . . . Database Lockouts . | . . . . . . . . . . Manual 5 | . . . . 3 . . . . 2 Terminals 5 | . . . . 1 . . . . 4 Fabricators . | . . . . . . . . . . Repair Stations . | . . . . . . . . . . Recycling Units 5 | . . . . 3 . . . . 2 Scanalyzers 1 | . . . . 1 . . . . . Garrison Access 3 | . . . . 3 . . . . . Terminal Hacks 53 | . . . 35 . . . 17 . 1 Record 30 | . . . 25 . . . 5 . . Part Schematic 4 | . . . . . . . 4 . . Robot Analysis 12 | . . . 8 . . . 4 . . Prototype ID Bank 5 | . . . . . . . 4 . 1 Open Door 1 | . . . 1 . . . . . . Proto ID Catalog 1 | . . . 1 . . . . . . Fabricator Hacks . | . . . . . . . . . . Repair Station Hacks . | . . . . . . . . . . Recycling Unit Hacks . | . . . . . . . . . . Scanalyzer . | . . . . . . . . . . Garrison Access Hacks 1 | . . . . 1 . . . . . Seal Access 1 | . . . . 1 . . . . . Unauthorized Hacks 2 | . . . . 1 . . . . 1 Terminals . | . . . . . . . . . . Fabricators . | . . . . . . . . . . Repair Stations . | . . . . . . . . . . Recycling Units 2 | . . . . 1 . . . . 1 Fedlink 1 | . . . . 1 . . . . . Scrapoids 1 | . . . . . . . . . 1 Scanalyzers . | . . . . . . . . . . Garrison Access . | . . . . . . . . . . Data Cores Recovered . | . . . . . . . . . . Used . | . . . . . . . . . . Hacking Detections 3 | . . . . 2 . . . . 1 Full Trace Events 1 | . . . . . . . . . 1 Feedback Events 1 | . . . . . . . . . 1 Corruption 1 | . . . . . . . . . 1 Feedback Blocked . | . . . . . . . . . . Robot Schematics Acquired . | . . . . . . . . . . Robots Built . | . . . . . . . . . . Authchips . | . . . . . . . . . . Time . | . . . . . . . . . . Total Robot Build Rating . | . . . . . . . . . . Part Schematics Acquired 4 | . . . . . . . 4 . . Parts Built . | . . . . . . . . . . Authchips . | . . . . . . . . . . Time . | . . . . . . . . . . Total Part Build Rating . | . . . . . . . . . . Part Studies Acquired . | . . . . . . . . . . Parts Repaired . | . . . . . . . . . . Time . | . . . . . . . . . . Parts Recycled . | . . . . . . . . . . Recycled Matter . | . . . . . . . . . . Retrieved Matter . | . . . . . . . . . . Retrieved Components . | . . . . . . . . . . Parts Scanalyzed . | . . . . . . . . . . Part Schematics Acquired . | . . . . . . . . . . Parts Damaged . | . . . . . . . . . . Bothacking | -11 -10 -10 -7 -5 -5 -5 -5 -4 -4 ------------ Run | Yrd Mat Sub Scr Fac Upp Upp Zhi Pro Fac Used RIF Installer . | . . . . . . . . . . Robots Hacked 1 | . . . . 1 . . . . . Non-combat . | . . . . . . . . . . Combat . | . . . . . . . . . . Robot Hacks Applied . | . . . . . . . . . . Manual 1 | . . . . 1 . . . . . Relay Couplers Released 5 | . . . . 4 . . . . 1 Machine Destruction 1 | . . . . . . . . . 1 Programmers 4 | . . . . 4 . . . . . Fabnet Peak Effective % . | . . . . . . . . . . Robots Rewired 1 | . . . . . . . . 1 . Allies Hacked . | . . . . . . . . . . Hacks Repelled . | . . . . . . . . . . Allies | -11 -10 -10 -7 -5 -5 -5 -5 -4 -4 -------- Run | Yrd Mat Sub Scr Fac Upp Upp Zhi Pro Fac Total Allies 10 | . . . 2 2 . . . 1 5 Largest Group 5 | . . . 2 3 2 2 2 3 5 Highest-Rated Group 235 | . . . 150 160 144 144 144 191 235 Highest-Rated Ally 83 | . . . 83 83 74 74 74 74 74 Initial UFD Resources 49 | . . . . 37 47 47 47 49 49 Total Orders 26 | . . . 5 5 1 4 1 6 4 STAY 13 | . . . 3 3 . 2 1 2 2 ROAM 1 | . . . . . . . . . 1 FOLLOW 12 | . . . 2 2 1 2 . 4 1 Ally Attacks 173 | . . . . 60 14 5 . 37 57 Total Damage 6226 | . . . . 2557 478 173 . 1184 1834 Kills 41 | . . . . 19 5 2 . 4 11 Allies Corrupted . | . . . . . . . . . . Allies Melted 2 | . . . . 1 . . . . 1 Intel | -11 -10 -10 -7 -5 -5 -5 -5 -4 -4 ------- Run | Yrd Mat Sub Scr Fac Upp Upp Zhi Pro Fac Active Infowar (turns) 3550 | . . . 23 1284 550 348 145 630 570 Sensors 2896 | . . . . 653 550 348 145 630 570 Structural 654 | . . . 23 631 . . . . . Robot Analysis Total 12 | . . . 8 . . . 4 . . Derelict Logs Recovered 3 | . . . 1 . . . . 2 . Drone Launches . | . . . . . . . . . . Drone Recoveries . | . . . . . . . . . . Exploration | -11 -10 -10 -7 -5 -5 -5 -5 -4 -4 ------------- Run | Yrd Mat Sub Scr Fac Upp Upp Zhi Pro Fac Turns Passed 10377 | 87 95 493 5781 1336 550 348 323 634 730 Spaces Moved 7865 | 51 59 387 5066 728 326 192 188 334 534 Core 3670 | 7 . . 3380 . . . . . 283 Treads 1824 | 44 59 142 61 619 326 192 188 192 1 Legs 501 | . . . . 109 . . . 142 250 Wheels 1870 | . . 245 1625 . . . . . . Hover . | . . . . . . . . . . Flight . | . . . . . . . . . . Fastest Speed 50 | 50 160 80 50 126 160 160 160 160 50 Average Speed 121 | 144 160 109 108 155 160 160 160 172 118 Slowest Speed 330 | 160 160 160 250 160 160 160 160 260 330 Overloaded Moves . | . . . . . . . . . . Propulsion Burnouts . | . . . . . . . . . . Robots Hopped . | . . . . . . . . . . Potential Cave-ins . | . . . . . . . . . . Cave-ins Triggered . | . . . . . . . . . . Teleports 1 | . . . . . . . . . 1 Exploration Rate (%) 35 | 4 6 18 84 17 60 32 60 54 15 Regions Visited 9 Branch Regions 6 Pre-discovered Areas 7 | . . . 4 . . . 3 . . Known Exits Taken 6 | . . . 1 1 1 1 1 1 . Unknown Exits Taken 3 | 1 1 1 . . . . . . . Scrap Searched 10 | . . 2 4 . 2 1 . 1 . Spaces Dug 3 | . . . . 1 . . . . 2 Terrain Destroyed 50 | . . . . 1 . . . 20 29 Melee 3 | . . . . 1 . . . . 2 Projectile . | . . . . . . . . . . AOE 47 | . . . . . . . . 20 27 Terrain Rammed . | . . . . . . . . . . Walls Destroyed . | . . . . . . . . . . Machines Disabled . | . . . . . . . . . . Actions | -11 -10 -10 -7 -5 -5 -5 -5 -4 -4 --------- Run | Yrd Mat Sub Scr Fac Upp Upp Zhi Pro Fac Total 8505 | 59 60 415 5387 865 341 212 205 363 598 Wait 216 | . . . 184 14 . 3 . 2 13 Move 7856 | 50 58 386 5065 727 325 191 187 333 534 Hop . | . . . . . . . . . . Pick Up 91 | 2 2 5 56 19 . 3 1 . 3 Fast Attach 45 | 6 . 1 9 14 1 . 6 1 7 Attach 35 | . . 2 8 11 2 1 . 4 7 Detach 18 | . . . 5 5 . . 1 1 6 Swap 4 | . . 1 . 2 . . . . 1 Drop 83 | . . . 57 18 1 . 6 . 1 Fire 33 | 1 . 20 3 2 . . . 3 4 Melee 121 | . . . . 52 11 14 4 18 22 Ram . | . . . . . . . . . . Kick . | . . . . . . . . . . Crush . | . . . . . . . . . . Escape Stasis . | . . . . . . . . . . Rewire 3 | . . . . 1 1 . . 1 . Trap . | . . . . . . . . . . Miscellaneous . | . . . . . . . . . . Route ------- -11/Scrapyard -10/Materials -10/Subcaves (discovered 2 exits: [*Rec] / *Scr) -7/Scraptown (discovered 2 exits: *Fac x2) -5/Factory -5/Upper Caves -5/Upper Caves -5/Zhirov -4/Proximity Caves -4/Factory (discovered 1 exit: *Res) History --------- Turn | Location | Event 4 | -11/Scrapyard | Discovered new exit (range 15) 88 | -11/Scrapyard | Entered Materials 89 | -10/Materials | Met a group of wandering Federalists 101 | -10/Materials | Discovered new exit (range 8) 183 | -10/Materials | Entered Subcaves 183 | -10/Subcaves | Discovered new exit (range 9) 184 | -10/Subcaves | Continued accompanying wandering Federalists (6) 184 | -10/Subcaves | Approached by a straggling Scientist 305 | -10/Subcaves | Ambushed by angry Subdweller bent on revenge 317 | -10/Subcaves | Build established: Mutant 462 | -10/Subcaves | Ambushed by angry Subdweller bent on revenge 676 | -10/Subcaves | Entered Scraptown 702 | -7/Scraptown | Visited CR-KLE's Repair Center 711 | -7/Scraptown | Visited Cyclists 728 | -7/Scraptown | Visited Supply Room 739 | -7/Scraptown | Visited Assassins FH 755 | -7/Scraptown | Visited The Evicted 764 | -7/Scraptown | Visited Junk Repository 788 | -7/Scraptown | Visited Junk Repository 806 | -7/Scraptown | Visited UFD Registry 806 | -7/Scraptown | Registered with UFD as "Wirecoil" 827 | -7/Scraptown | Visited Chapter 10 841 | -7/Scraptown | Visited Curators Association 854 | -7/Scraptown | Visited Science Guys 863 | -7/Scraptown | Visited Research Penetration Think Tank 877 | -7/Scraptown | Visited Scrap Suit Storage 889 | -7/Scraptown | Visited Abandonware Association 899 | -7/Scraptown | Learned abandonware demo "REPAIR.EXE" 899 | -7/Scraptown | Learned abandonware demo "TRNCOAT.EXE" 913 | -7/Scraptown | Visited Cartography Club 930 | -7/Scraptown | Visited Analyses Database 943 | -7/Scraptown | Visited Sword Containment 958 | -7/Scraptown | Visited Botcube Research 1142 | -7/Scraptown | Scanned Subdweller tech in exchange for log data 1144 | -7/Scraptown | Learned Research garrison access intel 1155 | -7/Scraptown | Discovered new exit (range 11) 1183 | -7/Scraptown | Guru changed UFD alias to "Gammakit" 1336 | -7/Scraptown | Found Surveybot 17 Chip 1362 | -7/Scraptown | Found Deep Structural Scanner 1368 | -7/Scraptown | Learned location of Lower Caves (-6) 1368 | -7/Scraptown | Learned location of Upper Caves (-5) 1368 | -7/Scraptown | Learned location of Proximity Caves (-3) 1368 | -7/Scraptown | Learned 12 Research zone layouts 1368 | -7/Scraptown | Learned 8 Access zone layouts 1368 | -7/Scraptown | Learned 4 Mines zone layouts 1368 | -7/Scraptown | Learned 16 Lower Caves zone layouts 1368 | -7/Scraptown | Learned 20 Lower Caves zone layouts 1368 | -7/Scraptown | Learned 4 Armory zone layouts 1368 | -7/Scraptown | Learned Research emergency access door positions 1368 | -7/Scraptown | Learned location of 1 exit from Research 1368 | -7/Scraptown | Learned location of 1 exit from Lower Caves 1368 | -7/Scraptown | Learned location of 2 exits from Proximity Caves 1368 | -7/Scraptown | Identified exit to Factory 1368 | -7/Scraptown | Learned 4 Hub_04(d) zone layouts 1482 | -7/Scraptown | Heard Great Nut preacher, LISTEN AND RECITE! 1704 | -7/Scraptown | Found Lrg. Botcube 2352 | -7/Scraptown | Found Botcube 2362 | -7/Scraptown | Found Scrap Suit 2623 | -7/Scraptown | CR-KLE repaired 6 parts 2742 | -7/Scraptown | Botcube activated 2764 | -7/Scraptown | Botcube completed mutation into treaded form, armed with 2 cannons. 2933 | -7/Scraptown | Found Scrap Suit 3106 | -7/Scraptown | Found Scrap Suit 5544 | -7/Scraptown | Lrg. Botcube activated 5578 | -7/Scraptown | Lrg. Botcube completed mutation into legged form, armed with 4 guns. 5671 | -7/Scraptown | Found Prototype Slashing Weapon 5671 | -7/Scraptown | Identified Companion Sword 5920 | -7/Scraptown | Attached CPS modules to *blockcube. 5964 | -7/Scraptown | Attached CPS modules to *warcube. 6399 | -7/Scraptown | Met Optimus 6399 | -7/Scraptown | Accepted into 0bPrime 6457 | -7/Scraptown | Entered Factory 6457 | -5/Factory | Accompanied by 2 allies 6457 | -5/Factory | Evolved 10 slots: Power x1, Propulsion x3, Utility x6 6458 | -5/Factory | Identified exit to Upper Caves 6664 | -5/Factory | Loaded intel: 8 recycling unit locations 6835 | -5/Factory | Spotted B-75 Beast 6855 | -5/Factory | Allies destroyed B-75 Beast 6907 | -5/Factory | Botcube activated 6927 | -5/Factory | Botcube completed mutation into treaded form, armed with 2 cannons. 7227 | -5/Factory | Build established: Scavenger-Mutant 7304 | -5/Factory | P-80 Master assimilated allied M-13 Machinist 7438 | -5/Factory | Garrison activated, responded to threat 7793 | -5/Factory | Entered Upper Caves 7793 | -5/Upper Caves | Accompanied by 2 allies 7795 | -5/Upper Caves | Build established: Mutant 8321 | -5/Upper Caves | Discovered new exit (range 12) 8342 | -5/Upper Caves | Identified exit to Upper Caves 8343 | -5/Upper Caves | Entered another Upper Caves area 8343 | -5/Upper Caves | Accompanied by 2 allies 8654 | -5/Upper Caves | Discovered new exit (range 7) 8683 | -5/Upper Caves | Identified exit to Zhirov 8691 | -5/Upper Caves | Entered Zhirov 8691 | -5/Zhirov | Accompanied by 2 allies 8691 | -5/Zhirov | Discovered new exit (range 3) 8720 | -5/Zhirov | Met Zhirov 8762 | -5/Zhirov | Found Alien Artifact 8762 | -5/Zhirov | Identified Integrated Dissipator 8762 | -5/Zhirov | Installed Integrated Dissipator, increased core heat dissipation (+20) 8893 | -5/Zhirov | Found Alien Artifact 8961 | -5/Zhirov | Learned location of Testing (-3) 8961 | -5/Zhirov | Learned location of Quarantine (-2) 8961 | -5/Zhirov | Learned location of Command (-1) 8971 | -5/Zhirov | Zhirov requested help retrieving the SGEMP Prototype 9013 | -5/Zhirov | Identified exit to Proximity Caves 9014 | -5/Zhirov | Entered Proximity Caves 9014 | -4/Proximity Caves | Accompanied by 2 allies 9015 | -4/Proximity Caves | Identified exit to Factory 9333 | -4/Proximity Caves | Learned Research machine intel 9351 | -4/Proximity Caves | Attracted the attention of an 0b10 checkpoint 9648 | -4/Proximity Caves | Entered Factory 9648 | -4/Factory | Accompanied by 2 allies 9648 | -4/Factory | Evolved 2 slots: Propulsion x1, Utility x1 9649 | -4/Factory | Build established: Scavenger-Mutant 9685 | -4/Factory | Found Prototype Launcher 9685 | -4/Factory | Identified Com. Tesla Bomb Launcher 10054 | -4/Factory | Garrison activated, responded to threat 10063 | -4/Factory | Attached CPS modules to *warcube. 10197 | -4/Factory | Found Lrg. Botcube 10208 | -4/Factory | Identified Transdimensional Reconstructor 10208 | -4/Factory | Warped through subspace 10208 | -4/Factory | Discovered new exit (range 5) 10215 | -4/Factory | Identified exit to Research 10225 | -4/Factory | Released all parts (9) 10249 | -4/Factory | Lost 9 parts (2p5n2u) 10291 | -4/Factory | Scrapoids reinforcements arrived? 10304 | -4/Factory | Core integrity fell below 50% 10334 | -4/Factory | Lost 5 allies 10345 | -4/Factory | Build established: Mutant 10369 | -4/Factory | Core integrity fell below 20% 10372 | -4/Factory | System corruption reached 10% 10378 | -4/Factory | Destroyed by P-70 Sage with Tesla Rifle Last Messages --------------- 10308_ System corrupted: Component data lost. 10311_ K-01 Serf collects debris. 10321_ Critical hit (Burn: +37). Companion Sword: "I'll remember this when it comes time to hit something." 10327_ Penetrated by Slug. 10329_ System corrupted: Matter fused (-9). 10333_ K-01 Serf cleans the Power Conduit. 10339_ ALERT: Potential suspicious activity detected, Programmers report to Factory Zone 1J. 10341_ C-30 ARC bursts open, deploying its payload. 10341_ S-27 Virus unfolds itself. 10355_ System corrupted: Energy discharge (-38). 10365_ Power Conduit explodes. 10365_ Destroyed VTOL Module. 10365_ S-27 Virus destroyed. 10365_ Destroyed VTOL Module. 10365_ S-27 Virus destroyed. 10366_ W-44 Eye sends out distress signal. Companion Sword: "I work better when attached to you, by the way." 10369_ U-05 Engineer builds a Wall. Map ----- +----------------------------------------------------+ | ?????????????????????????????????????????????????? | | ?????????????????????????????????????????????????? | | ?????????????????????????????????????????????????? | | ?????????????????????????????????????????????????? | | ?????????????????????????????????????????????????? | | ?????????????????????????????????????????????????? | | ?????????????????????????????????????????????????? | | ?????????????????????????????????????????????????? | | ?????????????????????????????????????????????????? | | ?????????????????????????????????????????????????? | | ?????????????????????????????????????????????????? | | ?????????????????????????????????????????????????? | | ?????????????????????????????????????????????????? | | ?????????????????????????????????????????????????? | | ?????????????????????????????????????????????????? | | ?????????????????????????????????????????????????? | | ?????????????????????????????????????????????????? | | ?????????????????????????????????????????????????? | | ????????????###+###########################/####?? | | ???????????? kt #?? | | ???????????? k #?? | | ??????????? ##? | | ??????????? R +? | | ?????????? #?? | | ?????????? p #?? | | ?????????? @ pu u #?? | | ?????????????????#######+#############""""""###### | | ????????????????????????????????????# " | | ???????????????????????????????????## " | | ???????????????????????????????????# " [ | | ???????????????????????????????????## | | ????????????????????????????????????# | | ????????????????????????????????????# | | ????????????????????????????????????# | | ???? ?????????????????????????????# | | ???? ???????????????????????????### !!! | | ???# #??????????????????????????#% !!! | | ???# #??????????????????????????# %* !!! | | ???# #??????????????????????????# | | ???# #??????????????????????????############ | | ???# #?????????????????????????????????????? | | ???+ #?????????????????????????????????????? | | ???# #?????????????????????????????????????? | | ???# #?????????????????????????????????????? | | ???# #?????????????????????????????????????? | | ??## ##????????????????????????????????????? | | ??# #????????????????????????????????????? | | ??# #??"""???????????????????????????????? | | ??# #?"""" ?????????????????????????????? | | ??# !!! # ???????????????????????????????? | +----------------------------------------------------+ Best States ------------- Heat Dissipation 63 Energy Generation 39 Energy Capacity 545 Matter Stores 300 Matter Capacity 300 Sight Range 16 Robot Scan Range 16 Terrain Scan Density 10 Additional Mass Support 9 Armor Coverage 1050 Resistance: KI 25 Resistance: TH 25 Evasion (%) 55 Melee Accuracy 8 Recoil Reduction 5 Item Schematics ----------------- Assault Drone Bay | -5/Zhirov | Free Exp. Heat Sink | -5/Zhirov | Free Imp. Arc Thrower | -5/Zhirov | Free Exp. Optical Array | -5/Zhirov | Free Robot Schematics ------------------ None Fabricated ------------ Nothing Repaired ---------- Nothing Studied --------- None Alien Tech Used ----------------- Integrated Dissipator Transdimensional Reconstructor Achievements -------------- None Challenges ------------ None Game ------ Seed ElectronHellfireShovel Manual? 0 Play Time 00:57:51 Cumulative 421.0 hours Start 2026.01.08 @ 17:28:26 End 2026.01.08 @ 18:33:39 Sessions 1 Manual Loads 0 Difficulty Rogue Special Mode None Game No. 380 Rogue 344 Adventurer 36 Explorer 0 Win Type - Total 16 Types 7/0/9/0/0/0/0/0/0/0 Lore% 72 Gallery% 85 Achievement% 64 Wizard Run 0 Options --------- Layout 0 ASCII 0 Keyboard 0 Movement Mouse Keybinds 0 Fullscreen 1 Font 18/SmallcapsGlow Map View 76x50 Zoom Use 0% Tactical HUD 1 Map Filters NONE Filters NONE Steam 1 RUN: ea5e5d5c-4822-471e-8324-019f3068a907